Workbook

Sheet SEW
A1: Übersicht Serviceersatzwagen in der Reisacher-Gruppe
A2: Stand: 31.08.22
A5: 1. Zu Befüllen von AHR
B7: 2022-01-01 | F7: 2022-02-01 | J7: 2022-03-01 | N7: 2022-04-01 | R7: 2022-05-01 | V7: 2022-06-01 | Z7: 2022-07-01 | AD7: 2022-08-01 | AH7: 2022-09-01 | AL7: 2022-10-01 | AP7: 2022-11-01 | AT7: 2022-12-01
A8: Betrieb | B8: Anzahl SEW Gesamt (Stand im APAS) | C8: davon eigene VFW (über monatliche Umbuchungsliste) | D8: davon Fahrzeuge Reisacher Service e.K. | E8: davon extern zugewiesen (wie Buchbinder), ständig aktiv | F8: Anzahl SEW Gesamt (Stand im APAS) | G8: davon eigene VFW (über monatliche Umbuchungsliste) | H8: davon Fahrzeuge Reisacher Service e.K. | I8: davon extern zugewiesen (wie Buchbinder), ständig aktiv | J8: Anzahl SEW Gesamt (Stand im APAS) | K8: davon eigene VFW (über monatliche Umbuchungsliste) | L8: davon Fahrzeuge Reisacher Service e.K. | M8: davon extern zugewiesen (wie Buchbinder), ständig aktiv | N8: Anzahl SEW Gesamt (Stand im APAS) | O8: davon eigene VFW (über monatliche Umbuchungsliste) | P8: davon Fahrzeuge Reisacher Service e.K. | Q8: davon extern zugewiesen (wie Buchbinder), ständig aktiv | R8: Anzahl SEW Gesamt (Stand im APAS) | S8: davon eigene VFW (über monatliche Umbuchungsliste) | T8: davon Fahrzeuge Reisacher Service e.K. | U8: davon extern zugewiesen (wie Buchbinder), ständig aktiv | V8: Anzahl SEW Gesamt (Stand im APAS) | W8: davon eigene VFW (über monatliche Umbuchungsliste) | X8: davon Fahrzeuge Reisacher Service e.K. | Y8: davon extern zugewiesen (wie Buchbinder), ständig aktiv | Z8: Anzahl SEW Gesamt (Stand im APAS) | AA8: davon eigene VFW (über monatliche Umbuchungsliste) | AB8: davon Fahrzeuge Reisacher Service e.K. | AC8: davon extern zugewiesen (wie Buchbinder), ständig aktiv | AD8: Anzahl SEW Gesamt (Stand im APAS) | AE8: davon eigene VFW (über monatliche Umbuchungsliste) | AF8: davon Fahrzeuge Reisacher Service e.K. | AG8: davon extern zugewiesen (wie Buchbinder), ständig aktiv | AH8: Anzahl SEW Gesamt (Stand im APAS) | AI8: davon eigene VFW (über monatliche Umbuchungsliste) | AJ8: davon Fahrzeuge Reisacher Service e.K. | AK8: davon extern zugewiesen (wie Buchbinder), ständig aktiv | AL8: Anzahl SEW Gesamt (Stand im APAS) | AM8: davon eigene VFW (über monatliche Umbuchungsliste) | AN8: davon Fahrzeuge Reisacher Service e.K. | AO8: davon extern zugewiesen (wie Buchbinder), ständig aktiv | AP8: Anzahl SEW Gesamt (Stand im APAS) | AQ8: davon eigene VFW (über monatliche Umbuchungsliste) | AR8: davon Fahrzeuge Reisacher Service e.K. | AS8: davon extern zugewiesen (wie Buchbinder), ständig aktiv | AT8: Anzahl SEW Gesamt (Stand im APAS) | AU8: davon eigene VFW (über monatliche Umbuchungsliste) | AV8: davon Fahrzeuge Reisacher Service e.K. | AW8: davon extern zugewiesen (wie Buchbinder), ständig aktiv
A9: MM | B9: =SUM(C9:E9) -> 15 | C9: 14 | D9: 1 | E9: 0 | F9: =SUM(G9:I9) -> 18 | G9: 17 | H9: 1 | I9: 0 | J9: =SUM(K9:M9) -> 17 | K9: 16 | L9: 1 | M9: 0 | N9: =SUM(O9:Q9) -> 19 | O9: 18 | P9: 1 | Q9: 0 | R9: =SUM(S9:U9) -> 21 | S9: 19 | T9: 2 | U9: 0 | V9: =SUM(W9:Y9) -> 25 | W9: 23 | X9: 2 | Y9: 0 | Z9: =SUM(AA9:AC9) -> 20 | AA9: 18 | AB9: 2 | AC9: 0 | AD9: =SUM(AE9:AG9) -> 16 | AE9: 14 | AF9: 2 | AG9: 0 | AH9: =SUM(AI9:AK9) -> 0 | AL9: =SUM(AM9:AO9) -> 0 | AP9: =SUM(AQ9:AS9) -> 0 | AT9: =SUM(AU9:AW9) -> 0
A10: ULM | B10: 28 | C10: 8 | D10: 16 | E10: 4 | F10: 34 | G10: 15 | H10: 16 | I10: 3 | J10: 33 | K10: 14 | L10: 16 | M10: 3 | N10: 33 | O10: 15 | P10: 16 | Q10: 2 | R10: 36 | S10: 17 | T10: 16 | U10: 3 | V10: 42 | W10: 23 | X10: 16 | Y10: 3 | Z10: 41 | AA10: 22 | AB10: 16 | AC10: 3 | AD10: 34 | AE10: 15 | AF10: 16 | AG10: 3 | AH10: 0 | AL10: 0 | AP10: 0 | AT10: 0
A11: KRU | B11: 2 | C11: 0 | D11: 2 | E11: 0 | F11: 2 | G11: 0 | H11: 2 | I11: 0 | J11: 2 | K11: 0 | L11: 2 | M11: 0 | N11: 2 | O11: 0 | P11: 2 | Q11: 0 | R11: 2 | S11: 0 | T11: 2 | U11: 0 | V11: 2 | W11: 0 | X11: 2 | Y11: 0 | Z11: 2 | AA11: 0 | AB11: 2 | AC11: 0 | AD11: 2 | AE11: 0 | AF11: 2 | AG11: 0 | AH11: 0 | AL11: 0 | AP11: 0 | AT11: 0
A12: LL | B12: 13 | C12: 0 | D12: 12 | E12: 1 | F12: 15 | G12: 0 | H12: 13 | I12: 2 | J12: 14 | K12: 0 | L12: 13 | M12: 1 | N12: 15 | O12: 0 | P12: 14 | Q12: 1 | R12: 16 | S12: 1 | T12: 14 | U12: 1 | V12: 18 | W12: 0 | X12: 16 | Y12: 2 | Z12: 22 | AA12: 1 | AB12: 16 | AC12: 5 | AD12: 21 | AE12: 2 | AF12: 15 | AG12: 4 | AH12: 0 | AL12: 0 | AP12: 0 | AT12: 0
A13: GZ | B13: 7 | C13: 0 | D13: 5 | E13: 2 | F13: 7 | G13: 0 | H13: 5 | I13: 2 | J13: 7 | K13: 0 | L13: 5 | M13: 2 | N13: 7 | O13: 0 | P13: 5 | Q13: 2 | R13: 6 | S13: 0 | T13: 5 | U13: 1 | V13: 6 | W13: 0 | X13: 5 | Y13: 1 | Z13: 6 | AA13: 0 | AB13: 5 | AC13: 1 | AD13: 5 | AE13: 0 | AF13: 4 | AG13: 1 | AH13: 0 | AL13: 0 | AP13: 0 | AT13: 0
A14: AAM | B14: 40 | C14: 21 | D14: 18 | E14: 1 | F14: 39 | G14: 20 | H14: 18 | I14: 1 | J14: 40 | K14: 22 | L14: 18 | M14: 0 | N14: 38 | O14: 21 | P14: 17 | Q14: 0 | R14: 40 | S14: 23 | T14: 17 | U14: 0 | V14: 39 | W14: 22 | X14: 17 | Y14: 0 | Z14: 31 | AA14: 14 | AB14: 17 | AC14: 0 | AD14: 36 | AE14: 19 | AF14: 17 | AG14: 0 | AH14: 0 | AL14: 0 | AP14: 0 | AT14: 0
A16: Summe | B16: =SUM(B9:B15) -> 105 | C16: =SUM(C9:C15) -> 43 | D16: =SUM(D9:D15) -> 54 | E16: =SUM(E9:E15) -> 8
E17: Buchbinder auf Reserve (werden kaum bewegt)
A19: beispiel Jan.2020 | B19: Gesamt Gruppe | C19: MM | D19: ULM | E19: KRU | F19: LL | G19: GZ | H19: A
A20: Somit verfügbare Miettage (bei 30 Tagen im Monat) | B20: =+B16*30 -> 3150 | C20: =+$Z9*30 -> 600 | D20: =+$B10*30 -> 840 | E20: =+$B11*30 -> 60 | F20: =+$B12*30 -> 390 | G20: =+$B13*30 -> 210 | H20: =+$B14*30 -> 1200
A21: verfügbare Miettage bei durchschnittlich 22 AT | B21: =+B16*22 -> 2310 | C21: =+$B9*22 -> 330 | D21: =+$B10*22 -> 616 | E21: =+$B11*22 -> 44 | F21: =+$B12*22 -> 286 | G21: =+$B13*22 -> 154 | H21: =+$B14*22 -> 880
A22: Tatsächlich vermietet lt. Quell MIS im Januar 2020 | B22: 2419 | C22: 540 | D22: 526 | E22: 13 | F22: 388 | G22: 55 | H22: 897
A23: Auslastung in % bei 30 Tagen | B23: =+B22/B20 -> 0.7679365079 | C23: =+C22/C20 -> 0.9 | D23: 0.6261904762 | E23: 0.2166666667 | F23: 0.9948717949 | G23: 0.2619047619 | H23: 0.7475
A24: Auslastung in % bei 22 Arbeitstagen im Januar o. Sa. | B24: =+B22/B21 -> 1.047186147 | C24: =+C22/C21 -> 1.636363636 | D24: 0.8538961039 | E24: 0.2954545455 | F24: 1.356643357 | G24: 0.3571428571 | H24: 1.019318182
A28: 2. Übersicht
B30: 2022-01-01 | C30: 2022-02-01 | D30: 2022-03-01 | E30: 2022-04-01 | F30: 2022-05-01 | G30: 2022-06-01 | H30: 2022-07-01 | I30: 2022-08-01 | J30: 2022-09-01 | K30: 2022-10-01 | L30: 2022-11-01 | M30: 2022-12-01
A31: Arbeitstage pro Monat | B31: 20 | C31: 20 | D31: 23 | E31: 19 | F31: 21 | G31: 20 | H31: 22 | I31: 22 | J31: 22 | K31: 20 | L31: 21 | M31: 21
B32: mögliche Miettage lt. APAS | C32: mögliche Miettage lt. APAS | D32: mögliche Miettage lt. APAS | E32: mögliche Miettage lt. APAS | F32: mögliche Miettage lt. APAS | G32: mögliche Miettage lt. APAS | H32: mögliche Miettage lt. APAS | I32: mögliche Miettage lt. APAS | J32: mögliche Miettage lt. APAS | K32: mögliche Miettage lt. APAS | L32: mögliche Miettage lt. APAS | M32: mögliche Miettage lt. APAS | O32: 1. HF gibt bis 11. des Folgemonats die Zahlen ein
A33: MM | B33: =+B$31*B9 -> 300 | C33: =+$C$31*F9 -> 360 | D33: =+$D$31*J9 -> 391 | E33: =+$E$31*N9 -> 361 | F33: =+$F$31*R9 -> 441 | G33: =+$G$31*V9 -> 500 | H33: =+$H$31*Z9 -> 440 | I33: =+$I$31*AD9 -> 352 | J33: =+$J$31*AH9 -> 0 | K33: =+$K$31*AL9 -> 0 | L33: =+$L$31*AP9 -> 0 | M33: =+$M$31*AT9 -> 0 | O33: 2. Arbeitstage werden einmal oben eingegeben für das ganze Jahre
A34: ULM | B34: =+$B$31*B10 -> 560 | C34: 680 | D34: 759 | E34: 627 | F34: 756 | G34: 840 | H34: 902 | I34: 748 | J34: 0 | K34: 0 | L34: 0 | M34: 0 | O34: 3. Zahlen müssen dann von 2. auf 3. ohne Formelverweis eingetragen werden (HF). Diesen Wert übernimmt dann immer Herr Winter.
A35: KRU | B35: =+$B$31*B11 -> 40 | C35: 40 | D35: 46 | E35: 38 | F35: 42 | G35: 40 | H35: 44 | I35: 44 | J35: 0 | K35: 0 | L35: 0 | M35: 0
A36: LL | B36: =+$B$31*B12 -> 260 | C36: 300 | D36: 322 | E36: 285 | F36: 336 | G36: 360 | H36: 484 | I36: 462 | J36: 0 | K36: 0 | L36: 0 | M36: 0
A37: GZ | B37: =+$B$31*B13 -> 140 | C37: 140 | D37: 161 | E37: 133 | F37: 126 | G37: 120 | H37: 132 | I37: 110 | J37: 0 | K37: 0 | L37: 0 | M37: 0
A38: AAM | B38: =+$B$31*B14 -> 800 | C38: 780 | D38: 920 | E38: 722 | F38: 840 | G38: 780 | H38: 682 | I38: 792 | J38: 0 | K38: 0 | L38: 0 | M38: 0
A40: *die möglichen zur Verfügung stehenden Miettage übermittelt AHR monatlich an Herr Winter über Dateizugriff Link im Haus Global Cube
A41: Masterdatei wird somit nur bei Global Cube abgelegt, keine monaliche E-Mail nötig, automatisieter Abgriff
A42: Wichtig: Nur Zahlen ändern, nicht die Datei.
A45: 3. Datenquelle für Herr Winter
B47: je nach Monat von 2. runter zukopieren (HF)
B48: mögliche Miettage lt. APAS
A49: MM | B49: 352 | D49: --> Zellwerte für Herr Winter (B49 bis B54)
A50: ULM | B50: 748
A51: KRU | B51: 44
A52: LL | B52: 462
A53: GZ | B53: 110
A54: AAM | B54: 792
A58: 4. Darstellung im MIS

Sheet Verarbeitung
A1: Betrieb Nr | B1: Vstufe 1 | C1: Zeile mit Bez | D1: Konto | E1: Bereich | F1: Marke_FIBU | G1: Jahr | H1: Mögl_Miettage_1 | I1: Mögl_Miettage_2 | J1: Mögl_Miettage_3 | K1: Mögl_Miettage_4 | L1: Mögl_Miettage_5 | M1: Mögl_Miettage_6 | N1: Mögl_Miettage_7 | O1: Mögl_Miettage_8 | P1: Mögl_Miettage_9 | Q1: Mögl_Miettage_10 | R1: Mögl_Miettage_11 | S1: Mögl_Miettage_12
A2: 10 | B2: Mögl. Miettage | E2: SC | G2: 2022 | H2: =SEW!B33 -> 300 | I2: =SEW!C33 -> 360 | J2: =SEW!D33 -> 391 | K2: =SEW!E33 -> 361 | L2: =SEW!F33 -> 441 | M2: =SEW!G33 -> 500 | N2: =SEW!H33 -> 440 | O2: =SEW!I33 -> 352 | P2: =SEW!J33 -> 0 | Q2: =SEW!K33 -> 0 | R2: =SEW!L33 -> 0 | S2: =SEW!M33 -> 0
A3: 40 | B3: Mögl. Miettage | E3: SC | G3: 2022 | H3: =SEW!B34 -> 560 | I3: =SEW!C34 -> 680 | J3: =SEW!D34 -> 759 | K3: =SEW!E34 -> 627 | L3: =SEW!F34 -> 756 | M3: =SEW!G34 -> 840 | N3: =SEW!H34 -> 902 | O3: =SEW!I34 -> 748 | P3: =SEW!J34 -> 0 | Q3: =SEW!K34 -> 0 | R3: =SEW!L34 -> 0 | S3: =SEW!M34 -> 0
A4: 30 | B4: Mögl. Miettage | E4: SC | G4: 2022 | H4: =SEW!B35 -> 40 | I4: =SEW!C35 -> 40 | J4: =SEW!D35 -> 46 | K4: =SEW!E35 -> 38 | L4: =SEW!F35 -> 42 | M4: =SEW!G35 -> 40 | N4: =SEW!H35 -> 44 | O4: =SEW!I35 -> 44 | P4: =SEW!J35 -> 0 | Q4: =SEW!K35 -> 0 | R4: =SEW!L35 -> 0 | S4: =SEW!M35 -> 0
A5: 50 | B5: Mögl. Miettage | E5: SC | G5: 2022 | H5: =SEW!B36 -> 260 | I5: =SEW!C36 -> 300 | J5: =SEW!D36 -> 322 | K5: =SEW!E36 -> 285 | L5: =SEW!F36 -> 336 | M5: =SEW!G36 -> 360 | N5: =SEW!H36 -> 484 | O5: =SEW!I36 -> 462 | P5: =SEW!J36 -> 0 | Q5: =SEW!K36 -> 0 | R5: =SEW!L36 -> 0 | S5: =SEW!M36 -> 0
A6: 55 | B6: Mögl. Miettage | E6: SC | G6: 2022 | H6: =SEW!B37 -> 140 | I6: =SEW!C37 -> 140 | J6: =SEW!D37 -> 161 | K6: =SEW!E37 -> 133 | L6: =SEW!F37 -> 126 | M6: =SEW!G37 -> 120 | N6: =SEW!H37 -> 132 | O6: =SEW!I37 -> 110 | P6: =SEW!J37 -> 0 | Q6: =SEW!K37 -> 0 | R6: =SEW!L37 -> 0 | S6: =SEW!M37 -> 0
A7: 60 | B7: Mögl. Miettage | E7: SC | G7: 2022 | H7: =SEW!B38 -> 800 | I7: =SEW!C38 -> 780 | J7: =SEW!D38 -> 920 | K7: =SEW!E38 -> 722 | L7: =SEW!F38 -> 840 | M7: =SEW!G38 -> 780 | N7: =SEW!H38 -> 682 | O7: =SEW!I38 -> 792 | P7: =SEW!J38 -> 0 | Q7: =SEW!K38 -> 0 | R7: =SEW!L38 -> 0 | S7: =SEW!M38 -> 0
